bitfinex-derivatives/quotes_ETHF0:USTF0_20251116
["timestamp","ask_amount","ask_price","bid_price","bid_amount"]
[1763334447922,0.00921791,3036.0,3035.3,3.21513668]
[1763334448114,0.00921791,3036.0,3035.3,0.00733668]
[1763334448315,3.21701791,3036.0,3035.3,0.00733668]
[1763334448628,0.00921791,3036.0,3035.4,3.2078]
[1763334449215,0.00921791,3036.0,3033.6,3.2078]
[1763334449216,3.2078,3035.5,3033.6,3.2078]
[1763334449414,3.2078,3034.6,3033.4,4.613]
[1763334449620,3.2078,3034.2,3033.4,4.613]
[1763334449817,3.2078,3034.2,3033.4,45.413]
[1763334450017,3.2078,3035.4,3034.1,3.2078]
[1763334450219,0.00494592,3035.1,3034.6,3.2078]
[1763334450817,0.00427199,3036.0,3035.0,5.52152916]
[1763334451219,3.2078,3036.8,3035.0,5.52152916]
[1763334451220,3.2078,3036.8,3035.8,3.2078]
[1763334451718,0.0346,3038.7,3035.1,3.2078]
[1763334451719,3.2078,3035.9,3035.1,3.2078]
[1763334452228,3.2078,3035.5,3033.8,3.2078]
[1763334452425,3.2078,3035.1,3033.8,3.2078]
[1763334452630,3.2078,3035.1,3032.9,11.873]
[1763334452631,3.2078,3035.6,3034.6,3.2078]
[1763334452821,3.2078,3035.0,3033.8,22.4488]
[1763334453017,3.2078,3035.7,3033.8,22.4488]
[1763334453221,0.00494592,3035.2,3034.6,0.00494592]
[1763334453430,0.00494592,3035.2,3034.7,3.2078]
[1763334453627,0.00332722,3035.9,3035.1,3.2078]
[1763334453833,0.00332722,3035.9,3035.5,3.2078]
[1763334454032,3.2078,3037.0,3035.7,0.53405]
[1763334454223,3.2078,3037.0,3035.5,3.2078]
[1763334454224,3.2078,3037.3,3036.4,0.53391]
[1763334454421,3.2078,3037.3,3036.5,0.53389]
[1763334454626,0.00494592,3037.2,3036.6,0.00494592]
[1763334454926,0.00816979,3037.2,3036.6,0.00754103]
[1763334455728,3.2078,3037.0,3036.6,0.00754103]
[1763334456136,0.00816979,3037.2,3036.6,0.00754103]
[1763334456434,0.00816979,3037.2,3036.7,0.53386]
[1763334456636,0.00816979,3037.2,3036.6,0.00754103]
[1763334457130,0.00816979,3037.2,3037.0,3.7416]
[1763334457333,0.00816979,3037.2,3037.0,3.2078]
[1763334457535,0.00816979,3037.2,3037.1,19.184]
[1763334457735,3.2078,3038.0,3037.1,19.184]
[1763334457932,3.2078,3038.0,3037.0,3.2078]
[1763334458140,3.2078,3037.1,3036.6,0.00754103]
[1763334458343,3.2078,3037.1,3036.0,3.2078]
[1763334458527,3.2078,3038.0,3036.4,3.2078]
[1763334458732,3.2078,3037.6,3036.6,0.53388]
[1763334459138,3.2078,3036.7,3035.8,44.0078]
[1763334459329,0.00494592,3036.6,3035.9,0.00494592]
[1763334459739,0.00349505,3036.7,3036.5,0.53389]
[1763334459937,3.2078,3040.5,3038.1,3.2078]
[1763334460133,3.2078,3040.5,3039.3,3.2078]
[1763334460438,3.2078,3040.9,3039.7,3.2078]
[1763334460641,3.2078,3040.7,3039.9,3.2078]
[1763334460833,0.00493753,3040.6,3040.0,0.00493753]
[1763334461235,0.00493753,3040.6,3040.3,3.2078]
[1763334461436,3.2078,3042.6,3040.4,2.31372916]
[1763334461639,3.2078,3042.6,3041.4,3.2078]
[1763334462436,0.00493753,3042.3,3041.7,0.00493753]
[1763334462637,0.00493753,3042.3,3042.0,3.2078]
[1763334463039,0.0346,3043.7,3042.0,3.2078]
[1763334463040,3.2424,3043.7,3042.0,5.52152916]
[1763334463341,3.2078,3042.1,3041.3,3.2078]
[1763334463544,3.2078,3042.1,3040.9,3.2078]
[1763334464140,0.09180955,3043.7,3040.8,19.25]
[1763334464141,3.2078,3042.9,3041.7,3.2078]
[1763334464333,0.0346,3043.7,3041.7,3.2078]
[1763334464334,3.2078,3043.0,3041.7,3.2078]
[1763334464537,0.00493753,3042.6,3042.0,0.00493753]
[1763334464752,0.00493753,3042.6,3041.7,3.2078]
[1763334464753,3.21273753,3042.6,3040.9,3.2078]
[1763334464933,3.2078,3042.0,3040.4,3.2078]
[1763334465132,3.2078,3041.5,3040.4,3.2078]
[1763334465346,3.2078,3041.2,3040.5,40.8]
[1763334465535,3.21013132,3042.0,3040.8,3.2078]
[1763334465740,0.00233132,3042.0,3041.3,3.2078]
[1763334466238,0.00233132,3042.0,3041.7,3.2078]
[1763334466433,3.21013132,3042.0,3041.1,0.00493753]
[1763334467141,0.00233132,3042.0,3041.6,3.2078]
[1763334467347,0.00233132,3042.0,3041.1,0.00493753]
[1763334467537,3.21013132,3042.0,3041.2,0.53308]
[1763334467734,3.21013132,3042.0,3041.1,0.00493753]
[1763334467936,3.2078,3041.2,3039.8,3.2078]
[1763334468139,3.2078,3041.2,3038.4,1.4349]
[1763334468140,3.2078,3040.3,3039.3,3.2078]
[1763334468433,3.2078,3039.8,3038.8,3.2078]
[1763334468934,0.84933187,3042.6,3038.4,40.8]
[1763334468935,0.84933187,3042.9,3041.9,3.2078]
[1763334469140,0.00378541,3042.9,3042.8,3.2078]
[1763334469344,3.2078,3044.1,3042.8,22.4958]
[1763334469541,2.31372916,3046.2,3042.5,2.31372916]
[1763334469542,3.2078,3044.6,3043.3,3.2078]
[1763334469843,0.00492893,3043.6,3043.4,40.8]
[1763334470147,3.2078,3045.6,3043.5,2.31372916]
[1763334470342,0.15104798,3045.5,3044.3,3.2078]
[1763334470540,0.15104798,3045.5,3044.3,3.21094882]
[1763334470740,0.15104798,3045.5,3044.4,3.2078]
[1763334470941,0.15104798,3045.5,3044.8,3.2078]
[1763334471140,0.15597691,3045.5,3045.3,3.2078]
[1763334471341,0.15597691,3045.5,3044.9,3.2078]
[1763334471538,0.15597691,3045.5,3045.2,3.2078]
[1763334471941,0.15597691,3045.5,3045.2,9.2078]
[1763334472140,3.2078,3049.1,3045.7,3.2078]
[1763334472350,3.2078,3048.4,3047.1,3.2078]
[1763334472538,3.2078,3048.5,3046.6,3.2078]
[1763334472738,3.2078,3048.3,3047.2,3.2078]
[1763334472939,3.2078,3046.7,3045.4,7.85808629]
[1763334473146,0.00492893,3046.4,3045.7,0.00492893]
[1763334473346,3.2078,3046.8,3045.9,7.45737595]
[1763334473542,3.2078,3046.4,3045.7,0.00492893]
[1763334473742,3.2078,3046.8,3045.7,0.00492893]
[1763334474053,3.2078,3046.0,3045.7,0.00492893]
[1763334474251,3.21068989,3046.0,3045.4,0.00316903]
[1763334474444,3.2078,3045.5,3045.4,0.00316903]
[1763334474848,3.2078,3045.5,3041.3,0.4817]
[1763334474849,9.2078,3045.5,3044.3,3.2078]
[1763334475145,3.2078,3044.6,3043.8,3.2078]
[1763334475550,0.00492893,3045.2,3044.3,3.2078]
[1763334475551,3.21272893,3045.2,3044.3,3.2078]
[1763334475751,3.2078,3044.7,3044.3,0.00410939]
[1763334476142,9.2078,3044.7,3044.3,0.00410939]
[1763334476349,3.2078,3044.7,3044.3,0.00410939]
[1763334476655,3.21272893,3045.2,3044.3,3.21190939]
[1763334477153,3.2078,3044.7,3044.3,9.39e-06]
[1763334477453,0.00492893,3045.2,3044.5,3.2078]
[1763334477646,0.00288989,3046.0,3045.1,3.2078]
[1763334477852,3.2078,3047.3,3045.6,4.6926]
[1763334478054,3.2078,3047.3,3046.3,3.2078]
[1763334478558,0.00492893,3047.1,3046.5,0.00492893]
[1763334478750,0.00834132,3047.1,3046.5,0.00762967]
[1763334478950,0.00834132,3047.1,3045.7,3.2078]
[1763334479251,0.00834132,3047.1,3046.3,3.2078]
[1763334479456,0.00834132,3047.1,3045.9,3.2078]
[1763334479457,3.2078,3047.0,3045.9,3.2078]
[1763334479656,3.2078,3046.2,3045.2,40.8]
[1763334479851,0.00834132,3047.1,3045.9,3.2078]
[1763334480053,3.2078,3047.5,3046.8,3.2078]
[1763334480254,3.2078,3048.1,3047.4,3.2078]
[1763334480450,0.0346,3048.7,3047.8,3.2078]
[1763334480655,3.2078,3048.0,3047.3,3.2078]
[1763334480849,3.2078,3048.0,3046.4,1.4848]
[1763334480850,3.2078,3048.2,3046.9,3.2078]
[1763334481053,0.00492893,3047.9,3047.3,3.2078]
[1763334481552,0.00492893,3047.9,3047.2,0.00492893]
[1763334481553,0.00492893,3047.9,3047.4,3.2078]
[1763334481755,3.2078,3047.7,3046.9,0.00317063]
[1763334481956,3.2078,3047.0,3045.2,40.8]
[1763334482148,3.2078,3046.2,3045.6,3.2078]
[1763334482350,3.2078,3046.7,3045.6,3.2078]
[1763334482660,0.00492893,3046.5,3045.8,3.21272893]
[1763334482849,0.00492893,3046.5,3045.8,3.21506738]
[1763334483049,0.00492893,3046.5,3046.2,3.2078]
[1763334483256,3.2078,3047.2,3046.4,1.4848]
[1763334483655,3.2078,3047.5,3046.4,1.4848]
[1763334483857,3.2078,3047.1,3046.4,1.4848]
[1763334484057,3.2078,3047.1,3045.8,0.00726738]
[1763334484058,3.2078,3046.5,3045.8,3.21506738]
[1763334484259,3.2078,3046.5,3041.9,13.43225442]
[1763334484260,3.2078,3046.1,3044.2,3.2078]
[1763334484552,3.2078,3044.3,3043.3,3.2078]
[1763334484754,3.2078,3044.4,3043.3,3.2078]
[1763334484953,3.2078,3044.0,3043.3,3.2078]
[1763334485360,0.00750011,3044.0,3043.3,3.21585751]
[1763334485657,3.2078,3044.5,3043.5,3.2078]
[1763334486156,3.2078,3043.9,3043.3,0.00312858]
[1763334486358,0.84933187,3046.6,3043.3,0.00312858]
[1763334486359,3.2078,3044.3,3043.3,0.00312858]
[1763334486555,3.2078,3045.0,3044.3,0.53253]
[1763334486756,3.2078,3046.6,3044.9,3.2078]
[1763334487055,3.2078,3046.6,3044.7,1.4848]
[1763334487056,3.2078,3046.7,3046.4,1.4848]
[1763334487264,3.2078,3046.7,3045.9,3.74005]
[1763334487459,3.2078,3046.6,3044.8,7.76735242]
[1763334487659,3.2078,3045.7,3045.0,3.2078]
[1763334487863,0.00239121,3046.6,3045.4,3.21272893]
[1763334488162,0.00239121,3046.6,3045.8,3.2078]
[1763334488852,0.00239121,3046.6,3045.7,3.2078]
[1763334489061,3.2078,3046.3,3045.4,3.21272893]
[1763334489259,0.00239121,3046.6,3045.8,3.2078]
[1763334489451,0.00239121,3046.6,3045.8,3.74006]
[1763334489652,3.2078,3047.2,3046.4,1.4848]
[1763334489966,0.0346,3048.7,3046.5,0.00492893]
[1763334490158,2.3288908,3050.0,3046.5,0.00492893]
[1763334490159,1.15470562,3050.1,3049.5,0.53162]
[1763334490358,3.2078,3050.6,3049.3,3.2078]
[1763334490653,3.2078,3051.2,3050.1,3.2078]
[1763334490852,0.00412843,3050.6,3050.5,3.2078]
[1763334491170,3.2078,3052.1,3050.5,6.51914503]
[1763334491460,3.2078,3052.1,3051.6,3.2078]
[1763334491865,17.40262423,3052.5,3051.6,3.2078]
[1763334492068,0.14845364,3052.0,3051.7,0.53125]
[1763334492254,3.2078,3053.6,3052.8,1.4848]
[1763334492459,1.15470562,3056.2,3052.8,1.4848]
[1763334492460,3.2078,3054.8,3053.4,3.2078]
[1763334492754,3.2078,3053.8,3053.0,3.2078]
[1763334493060,3.2078,3055.3,3053.4,3.2078]
[1763334493256,3.2078,3054.9,3054.2,3.2078]
[1763334493451,3.2078,3054.5,3054.2,0.0031709]
[1763334493658,3.2078,3054.5,3052.8,1.4848]
[1763334493659,3.2078,3054.5,3052.0,3.2078]
[1763334493961,3.2078,3052.9,3051.9,3.2078]
[1763334494358,3.2078,3053.3,3052.5,3.2078]
[1763334494567,3.21072974,3053.3,3052.8,1.4848]
[1763334494772,3.2078,3056.5,3053.2,3.2078]
[1763334495065,3.2078,3056.5,3052.8,2.01584]
[1763334495066,3.2078,3055.2,3053.7,3.2078]
[1763334495259,3.21265028,3055.2,3054.5,0.00491079]
[1763334495457,3.2078,3054.8,3054.3,3.2078]
[1763334495663,0.00297054,3054.8,3054.7,3.2078]
[1763334495860,0.00297054,3054.8,3054.7,3.2111885]
[1763334496065,0.00485028,3055.2,3054.7,9.2111885]
[1763334496369,0.00485028,3055.2,3055.1,3.2078]
[1763334496665,3.2078,3056.3,3055.1,3.2078]
[1763334496878,3.2078,3057.1,3055.7,3.2078]
[1763334497165,0.00370996,3056.3,3056.1,3.2078]
[1763334497367,0.00370996,3056.3,3055.7,3.2078]
[1763334497565,0.00862075,3056.3,3055.7,3.21271079]
[1763334498164,3.2078,3055.8,3055.0,3.2078]
[1763334498559,3.2078,3055.2,3054.5,3.2078]
[1763334498764,3.2078,3054.6,3052.9,3.2078]
[1763334499060,3.2078,3053.9,3052.9,3.2078]
[1763334499263,3.2078,3054.4,3053.5,3.2078]
[1763334499476,0.00491079,3053.7,3053.5,3.2078]
[1763334499669,1.15470562,3058.1,3053.5,3.2078]
[1763334499670,3.2078,3054.8,3053.6,3.61526508]
[1763334499968,0.53074,3054.7,3053.9,3.2078]
[1763334500169,0.53076,3054.6,3054.3,3.2078]
[1763334500372,0.53078,3054.4,3053.9,3.2078]
[1763334500571,0.5344216,3054.4,3053.9,3.2078]
[1763334500766,0.5344216,3054.4,3053.5,0.00278054]
[1763334500767,0.53091,3053.6,3053.5,0.00278054]
[1763334500968,3.2078,3053.9,3053.0,3.2078]
[1763334501162,3.2078,3054.2,3053.1,3.2078]
[1763334501567,0.0036416,3054.4,3053.5,3.2078]
[1763334501770,3.2078,3055.6,3054.3,3.2078]
[1763334501974,3.2078,3055.6,3055.1,3.2078]
[1763334502369,3.2078,3056.2,3055.1,3.2078]
[1763334502666,3.2078,3056.8,3055.6,3.2078]
[1763334502864,0.00491079,3056.5,3055.9,0.00491079]
[1763334503060,0.00491079,3056.5,3056.0,3.2078]
[1763334503265,0.00491079,3056.5,3055.9,0.00491079]
[1763334503266,0.00491079,3056.5,3056.4,3.2078]
[1763334503870,0.00491079,3056.5,3056.0,3.2078]
[1763334504074,0.00491079,3056.5,3055.9,3.21271079]
[1763334504264,0.00491079,3056.5,3055.9,0.00491079]
[1763334504665,3.2078,3056.4,3055.9,0.00491079]
[1763334504873,0.00491079,3056.5,3055.9,0.00491079]
[1763334505072,3.2078,3056.3,3055.6,0.00353524]
[1763334505271,3.2078,3056.3,3055.4,3.2078]
[1763334505571,0.00491079,3056.5,3055.4,3.2078]
[1763334505771,3.2078,3056.3,3055.4,3.2078]
[1763334506075,3.2078,3056.3,3055.5,0.00491079]
[1763334506377,3.2078,3056.3,3055.5,0.00780547]
[1763334506566,0.00491079,3056.5,3055.5,3.21560547]
[1763334506876,0.00491079,3056.5,3055.9,3.2078]
[1763334507074,0.00491079,3056.5,3056.4,3.2078]
[1763334507276,0.00491079,3056.5,3055.9,3.2078]
[1763334507874,3.2078,3056.1,3055.5,0.00780547]
[1763334508062,3.2078,3055.6,3053.4,3.2078]
[1763334508267,3.2078,3053.7,3052.5,3.2078]
[1763334508466,3.2078,3054.7,3053.3,3.2078]
[1763334508667,3.2078,3054.7,3053.8,3.2078]
[1763334508866,3.2078,3054.6,3053.2,3.2078]
[1763334509074,0.00491079,3054.2,3053.6,0.00491079]
[1763334509269,3.21271079,3054.2,3053.6,0.00491079]
[1763334509472,3.2078,3054.0,3053.6,0.00491079]
[1763334509774,0.00491079,3054.2,3053.7,3.2078]
[1763334510273,0.00491079,3054.2,3054.1,3.2078]
[1763334510476,0.00491079,3054.2,3053.6,0.00491079]
[1763334510970,0.00491079,3054.2,3054.0,3.2078]
[1763334511477,3.2078,3055.0,3054.9,1.4781]
[1763334512276,3.2078,3055.0,3053.7,3.2078]
[1763334512477,3.210399,3055.0,3053.7,3.2078]
[1763334512780,3.2078,3054.4,3053.7,3.2078]
[1763334513283,3.2078,3053.8,3053.2,0.0025891]
[1763334513673,3.2078,3053.4,3052.4,3.2078]
[1763334514177,3.2078,3054.3,3052.8,3.2078]
[1763334514382,0.00491079,3053.9,3053.2,0.00491079]
[1763334514784,0.00491079,3053.9,3053.2,0.00799043]
[1763334515383,3.2078,3053.6,3052.5,3.2078]
[1763334515685,3.2078,3052.8,3051.3,3.2078]
[1763334515881,3.2078,3052.3,3051.2,3.2078]
[1763334516281,11.85200941,3054.2,3046.8,65.528]
[1763334516282,3.2078,3051.9,3050.1,3.2078]
[1763334516487,3.2078,3050.9,3049.8,4.6926]
[1763334516680,3.2078,3050.9,3049.8,3.2078]
[1763334516879,6.05065412,3053.3,3049.8,0.00255809]
[1763334516880,3.2078,3050.6,3049.8,0.00255809]
[1763334517080,3.2078,3050.6,3050.0,0.00491079]
[1763334517281,3.2078,3050.1,3050.0,1.079e-05]
[1763334517587,3.21035855,3050.1,3048.2,3.2078]
[1763334517778,3.2078,3048.9,3048.2,3.2078]
[1763334518486,3.21271957,3048.9,3048.2,3.21656907]
[1763334518789,3.21271957,3048.9,3048.2,0.00876907]
[1763334518984,3.21271957,3048.9,3047.4,3.2078]
[1763334518985,3.2078,3048.3,3047.4,3.2078]
[1763334519195,3.2078,3048.3,3047.3,3.2078]
[1763334519588,3.21271957,3048.9,3047.8,3.2078]
[1763334520082,3.21271957,3048.9,3048.0,1.48139432]
[1763334520384,3.21271957,3048.9,3048.0,4.68919432]
[1763334520786,3.2078,3048.5,3048.0,0.00329432]
[1763334520989,3.2078,3048.1,3048.0,0.00329432]
[1763334521187,3.2078,3048.1,3047.8,0.0040617]
[1763334521188,3.2078,3048.5,3047.8,0.0040617]
[1763334522084,3.2078,3048.1,3046.8,3.2078]
[1763334522284,3.2078,3047.3,3046.4,4.6859]
[1763334522477,3.21271957,3047.2,3045.9,3.2078]
[1763334522682,3.21271957,3047.2,3046.4,3.2078]
[1763334522986,3.21504451,3047.2,3046.4,3.21201313]
[1763334523191,3.21504451,3047.2,3046.4,4.69011313]
[1763334523395,3.2078,3046.8,3046.4,0.00421313]
[1763334524490,0.00724451,3047.2,3046.4,1.48231313]
[1763334524792,0.00724451,3047.2,3046.5,3.2078]
[1763334525491,3.2078,3046.9,3046.4,1.313e-05]
[1763334525695,3.2078,3046.9,3045.9,3.2078]
[1763334526193,3.2078,3046.5,3045.9,3.2078]
[1763334526590,3.2078,3046.9,3045.9,3.210689]
[1763334526787,0.00724451,3047.2,3046.4,3.2078]
[1763334527189,0.00724451,3047.2,3046.0,3.2078]
[1763334527487,3.2078,3046.3,3044.8,1.4781]
[1763334527692,3.2078,3045.4,3044.8,1.4781]
[1763334528194,3.2078,3045.0,3044.1,3.2078]
[1763334528588,3.21072659,3045.0,3044.1,3.21067416]
[1763334528788,0.00292659,3045.0,3044.6,3.2078]
[1763334529095,3.2078,3044.9,3044.1,3.21067416]
[1763334529486,3.2078,3044.5,3044.1,3.21067416]
[1763334529689,3.2078,3044.5,3044.1,0.00287416]
[1763334530293,3.21072659,3045.0,3044.2,3.2078]
[1763334530487,3.21072659,3045.0,3044.1,0.00287416]
[1763334530690,3.2078,3044.5,3044.1,0.00287416]
[1763334531196,3.2078,3044.5,3043.0,3.2078]
[1763334531396,3.2078,3044.3,3043.0,3.2078]
[1763334531590,3.2078,3044.3,3043.4,3.2078]
[1763334532193,3.2078,3043.9,3043.4,0.00236783]
[1763334532702,3.2078,3043.5,3043.4,0.00236783]
[1763334532994,3.2078,3043.5,3042.9,3.2078]
[1763334533189,3.2078,3043.1,3042.4,3.2078]
[1763334533390,3.2078,3043.5,3042.8,3.2078]
[1763334533699,0.00492797,3043.8,3042.8,3.2078]
[1763334534096,0.00492797,3043.8,3042.8,3.21046346]
[1763334535705,0.00492797,3043.8,3043.2,3.2078]
[1763334536097,0.00492797,3043.8,3042.8,3.21046346]
[1763334536400,3.2078,3043.5,3042.8,3.21046346]
[1763334538304,3.2078,3043.0,3042.8,0.00266346]
[1763334539001,9.2078,3043.0,3041.9,3.2078]
[1763334539202,3.2078,3042.2,3041.4,3.2078]
[1763334539402,3.2078,3041.7,3041.2,3.2078]
[1763334539999,3.21081532,3041.7,3041.2,3.21189869]
[1763334540195,0.00301532,3041.7,3041.2,3.21189869]
[1763334540405,0.00301532,3041.7,3041.6,3.2078]
[1763334540701,2.80334681,3044.6,3041.6,3.2078]
[1763334540702,3.2078,3042.7,3041.8,0.53296]
[1763334540901,3.2078,3043.5,3042.6,3.2078]
[1763334541101,3.2078,3045.2,3043.3,3.2078]
[1763334541310,3.2078,3045.2,3044.1,3.2078]
[1763334541499,3.2078,3046.2,3045.0,4.606]
[1763334541697,0.00369471,3046.2,3045.1,0.53239]
[1763334541898,0.00369471,3046.2,3045.8,3.2078]
[1763334542103,0.00369471,3046.2,3045.3,3.21272797]
[1763334542509,3.2078,3047.9,3045.8,3.2078]
[1763334542807,3.2078,3049.0,3047.4,3.2078]
[1763334543105,3.2078,3049.1,3047.2,3.2078]
[1763334543311,3.2078,3048.2,3047.5,3.2078]
[1763334543499,0.00233671,3048.2,3047.5,3.21128077]
[1763334543705,0.00233671,3048.2,3048.1,3.2078]
[1763334544210,0.00233671,3048.2,3045.1,4.899]
[1763334544507,0.53225,3046.0,3045.8,3.2078]
[1763334544706,3.2078,3046.5,3045.6,3.2078]
[1763334545107,3.2078,3047.0,3045.6,3.2078]
[1763334545309,0.00491981,3046.6,3046.5,1.3982]
[1763334545607,0.00491981,3046.6,3046.0,3.21271981]
[1763334545608,3.2078,3046.6,3046.0,0.00491981]
[1763334546110,0.00293217,3047.0,3045.6,0.00284531]
[1763334546111,3.2078,3046.1,3045.6,0.00284531]
[1763334546302,3.2078,3045.7,3044.2,3.2078]
[1763334546505,3.2078,3044.9,3044.2,3.2078]
[1763334546710,3.2078,3045.9,3044.2,3.2078]
[1763334546907,3.2078,3046.0,3044.7,3.2078]
[1763334547109,0.00491981,3045.7,3045.0,0.00491981]
[1763334547305,3.2078,3046.7,3045.4,3.2078]
[1763334547506,0.00293217,3047.0,3046.0,3.2078]
[1763334547810,3.2078,3048.5,3046.9,3.2078]
[1763334548010,3.2078,3048.5,3047.4,3.2078]
[1763334548216,3.2078,3048.5,3047.8,3.2078]
[1763334548506,0.00491981,3048.5,3048.3,3.2078]
[1763334548711,0.00861513,3048.5,3048.3,3.21173461]
[1763334549309,0.00861513,3048.5,3047.8,3.21271981]
[1763334549618,3.2078,3048.1,3047.8,0.00491981]
[1763334549812,3.2078,3048.1,3046.5,1.3982]
[1763334550001,3.2078,3048.1,3047.1,3.2078]
[1763334550202,3.2078,3047.3,3046.3,3.2078]
[1763334550404,3.2078,3047.3,3046.4,3.2078]
[1763334550609,3.2078,3047.3,3046.3,0.00407873]
[1763334550809,3.2078,3046.9,3046.5,0.00491981]
[1763334551307,0.00491981,3047.1,3046.5,0.00491981]
[1763334551815,0.00491981,3047.1,3046.9,3.2078]
[1763334552413,0.00491981,3047.1,3045.3,3.2078]
[1763334552414,3.2078,3047.0,3045.3,3.2078]
[1763334552710,3.2078,3046.4,3045.3,3.2078]
[1763334553413,3.2078,3046.4,3045.8,3.2078]
[1763334553622,3.2078,3046.9,3045.8,3.2078]
[1763334554117,0.00491981,3047.1,3045.3,0.00317289]
[1763334554118,3.2078,3046.2,3045.3,0.00317289]
[1763334554314,3.2078,3045.7,3045.3,0.00317289]
[1763334554712,3.2078,3046.1,3045.3,0.00317289]
[1763334554915,3.2078,3046.1,3045.4,3.2078]
[1763334555715,3.2078,3046.9,3045.8,3.2078]
[1763334555915,0.00491981,3047.1,3046.7,3.2078]
[1763334556615,0.00804876,3047.1,3045.3,0.00317289]
[1763334556819,3.2078,3046.7,3045.9,3.2078]
[1763334557024,0.00804876,3047.1,3045.3,0.00317289]
[1763334557025,3.2078,3046.3,3045.3,0.00317289]
[1763334557225,3.2078,3046.7,3045.8,3.2078]
[1763334557722,3.21584876,3047.1,3046.3,3.2078]
[1763334557923,3.21584876,3047.1,3046.3,44.0078]
[1763334559019,3.2078,3048.7,3046.7,3.2078]
[1763334559233,3.2078,3048.4,3047.7,3.2078]
[1763334559430,3.2078,3049.2,3048.1,3.2078]
[1763334559730,3.2078,3049.2,3046.4,3.83068135]
[1763334559731,3.2078,3048.8,3047.9,3.2078]
[1763334559927,3.2078,3048.8,3046.5,7.59077242]
[1763334559928,3.2078,3048.0,3046.8,3.2078]
[1763334560232,0.00491981,3047.7,3047.2,3.2078]
[1763334560820,3.2078,3048.7,3047.6,3.73975]
[1763334561020,3.2078,3048.7,3047.1,0.00491981]
[1763334561021,3.2078,3048.8,3047.4,3.2078]
[1763334561226,3.2078,3049.2,3048.0,3.2078]
[1763334561734,3.2078,3049.2,3047.7,3.2078]
[1763334561928,3.2078,3048.2,3046.8,0.00351783]
[1763334562124,3.2078,3048.0,3046.8,0.00351783]
[1763334562336,3.2078,3047.6,3046.8,0.00351783]
[1763334562636,3.2078,3047.6,3047.0,3.2078]
[1763334563030,3.2078,3047.6,3047.0,3.21271981]
[1763334563328,3.2078,3048.4,3047.4,3.2078]
[1763334564233,3.2078,3047.5,3047.0,0.00491981]
[1763334564435,3.2078,3047.4,3047.0,0.00491981]
[1763334565032,3.2078,3047.9,3047.0,0.00491981]
[1763334565229,3.2078,3047.4,3047.0,0.00491981]
[1763334565432,3.2078,3047.9,3047.0,0.00491981]
[1763334566030,3.2078,3048.3,3047.3,3.2078]
[1763334566829,3.2078,3047.9,3047.3,3.2078]
[1763334568336,3.2078,3047.4,3047.0,0.00491981]
[1763334569025,3.2078,3047.4,3046.8,0.00351783]
[1763334569228,3.2078,3047.0,3046.8,0.00351783]
[1763334569427,3.21085674,3047.0,3046.8,0.00351783]
[1763334570426,0.00491981,3047.2,3046.9,3.2078]
[1763334571338,0.00743177,3047.2,3046.9,3.2078]
[1763334571640,3.2078,3047.0,3046.8,0.00351783]
[1763334572026,0.77955159,3046.9,3046.8,0.00351783]
[1763334573138,0.00743177,3047.2,3046.8,7.51571783]
[1763334573342,0.38271642,3048.2,3047.1,0.53205]
[1763334573640,3.2078,3048.3,3047.5,3.2078]
[1763334573938,2.31848135,3049.6,3046.8,1.51571783]
[1763334573939,3.2078,3049.2,3048.0,1.5122]
[1763334574138,3.2078,3049.6,3048.9,3.2078]
[1763334574327,3.21626223,3049.6,3048.9,3.21271981]
[1763334574532,0.00846223,3049.6,3049.3,3.2078]
[1763334574734,0.00846223,3049.6,3049.3,3.21183035]
[1763334575133,3.21626223,3049.6,3049.3,0.00403035]
[1763334575740,0.00846223,3049.6,3049.3,0.00403035]
[1763334575936,0.00846223,3049.6,3049.5,3.2078]
[1763334576245,0.00846223,3049.6,3049.3,0.00403035]
[1763334576542,6.00846223,3049.6,3048.9,0.00491981]
[1763334576842,3.2078,3049.2,3048.9,0.00491981]
[1763334577244,6.0,3049.1,3047.5,3.2078]
[1763334577546,3.2078,3048.5,3047.5,3.21052583]
[1763334577943,3.2078,3049.0,3048.5,1.5122]
[1763334578239,3.2078,3051.1,3049.6,0.53161]
[1763334578442,3.2078,3051.7,3050.3,3.2078]
[1763334578743,3.2078,3051.7,3051.1,3.2078]
[1763334578929,14.34696771,3052.2,3051.5,3.2078]
[1763334579136,14.35483582,3052.2,3051.5,0.00838157]
[1763334579335,1.15470562,3053.8,3051.8,3.2078]
[1763334579534,3.2078,3054.3,3052.6,3.2078]
[1763334579735,3.2078,3054.9,3053.4,3.2078]
[1763334580236,3.2078,3055.3,3054.2,3.2078]
[1763334580442,3.2078,3054.5,3054.2,0.00298285]
[1763334580640,3.2078,3054.7,3054.4,0.00491135]
[1763334580833,3.2078,3054.7,3053.6,3.2078]
[1763334581039,3.2078,3054.3,3053.1,3.2078]
[1763334581234,3.2078,3054.3,3053.6,3.2078]
[1763334581435,0.00491135,3055.1,3054.0,3.2078]
[1763334581634,0.00491135,3055.1,3053.8,2.31848135]
[1763334581635,1.4582,3056.3,3055.0,3.2078]
[1763334581935,3.2078,3056.2,3055.5,3.2078]
[1763334582145,3.2078,3056.9,3056.1,3.2078]
[1763334582639,0.00491135,3056.8,3056.2,0.00491135]
[1763334583638,1.4582,3056.2,3056.1,0.00322422]
[1763334583943,1.4582,3056.2,3055.5,3.2078]
[1763334584339,0.00491135,3056.8,3055.9,3.2078]
[1763334584534,3.2078,3056.7,3055.4,3.2078]
[1763334584836,1.4582,3056.2,3055.7,1.135e-05]
[1763334585341,10.666,3056.2,3055.4,2.73054995]
[1763334585538,3.2078,3055.8,3054.5,3.2078]
[1763334585746,3.2078,3055.2,3054.5,3.2078]
[1763334585940,3.2078,3054.7,3053.7,3.2078]
[1763334586337,0.00491135,3054.5,3053.7,3.2078]
[1763334586536,0.00491135,3054.5,3054.2,3.2078]
[1763334586939,3.2078,3055.1,3054.2,3.2078]
[1763334587335,3.2078,3055.6,3054.6,3.2078]
[1763334587535,3.2078,3055.5,3055.0,3.2078]
[1763334587941,3.2078,3055.1,3054.9,0.00491135]